bitfinex/quotes_BTCUSD_20220304
["timestamp","ask_amount","ask_price","bid_price","bid_amount"]
[1646377709860,0.0011,41445.0,41443.0,2.24926379]
[1646377710313,0.0032,41464.0,41447.0,0.02413]
[1646377710513,0.3011,41466.0,41453.0,0.15]
[1646377710514,0.0011,41466.0,41453.0,0.15]
[1646377710712,0.0011,41466.0,41458.0,0.02413]
[1646377710913,0.0011,41466.0,41460.0,0.76083]
[1646377711111,0.0011,41466.0,41462.0,0.02413]
[1646377711310,0.0011,41466.0,41465.0,0.41606917]
[1646377711511,0.0011,41466.0,41465.0,0.74053917]
[1646377712313,0.0011,41466.0,41465.0,0.44053917]
[1646377712911,0.0021,41471.0,41465.0,0.44053917]
[1646377712912,0.001,41471.0,41466.0,1.52413]
[1646377713114,0.0021,41472.0,41470.0,0.04904417]
[1646377713414,0.0021,41474.0,41471.0,0.07351417]
[1646377713415,0.0013,41473.0,41471.0,0.07351417]
[1646377713611,0.0013,41473.0,41472.0,0.39193917]
[1646377713861,0.0013,41473.0,41472.0,0.74053917]
[1646377714060,0.0013,41473.0,41472.0,0.44053917]
[1646377714462,0.0013,41473.0,41472.0,0.74053917]
[1646377715671,0.0002,41506.0,41476.0,1.55037937]
[1646377715863,0.0002,41506.0,41486.0,0.7577]
[1646377716061,0.0002,41506.0,41487.0,1.347455]
[1646377716264,0.0002,41506.0,41492.0,0.367025]
[1646377716462,0.0002,41506.0,41493.0,0.0486]
[1646377716663,0.0002,41506.0,41494.0,0.0486]
[1646377716964,0.17258425,41503.0,41494.0,0.0486]
[1646377717162,0.27360896,41504.0,41495.0,0.367025]
[1646377717364,0.27360896,41504.0,41496.0,0.0486]
[1646377718021,0.16363413,41503.0,41496.0,0.0486]
[1646377718224,0.06165244,41498.0,41496.0,0.0486]
[1646377718423,0.499151,41497.0,41496.0,0.0486]
[1646377719022,0.21565132,41499.0,41491.0,0.0486]
[1646377719223,0.199151,41498.0,41491.0,0.0486]
[1646377719423,0.21737755,41494.0,41486.0,0.0486]
[1646377719626,0.20857755,41494.0,41486.0,0.0486]
[1646377720227,0.21565132,41499.0,41486.0,0.0486]
[1646377720523,0.21565132,41499.0,41485.0,0.18988252]
[1646377720725,0.21363413,41503.0,41485.0,0.18988252]
[1646377720924,0.1,41503.0,41492.0,0.18145825]
[1646377721127,0.3,41507.0,41492.0,0.18145825]
[1646377721364,0.25198885,41500.0,41492.0,0.18145825]
[1646377721866,0.45245812,41500.0,41492.0,0.18145825]
[1646377722061,0.5127005,41504.0,41494.0,0.367025]
[1646377722263,0.2127005,41504.0,41492.0,0.18145825]
[1646377722461,0.2127005,41504.0,41493.0,0.367025]
[1646377722661,0.2127005,41504.0,41492.0,0.18145825]
[1646377722860,0.0011,41508.0,41492.0,0.18145825]
[1646377723063,0.26764108,41505.0,41492.0,1.00257665]
[1646377723464,0.3,41507.0,41493.0,0.02413]
[1646377723663,0.3,41507.0,41492.0,0.24174665]
[1646377723863,0.18204285,41505.0,41492.0,0.18145825]
[1646377724063,0.3,41504.0,41492.0,0.18145825]
[1646377724464,0.23988303,41501.0,41492.0,0.18145825]
[1646377724664,0.3,41504.0,41492.0,0.18145825]
[1646377724868,0.18204285,41505.0,41492.0,0.18145825]
[1646377726116,0.18204285,41505.0,41493.0,0.367025]
[1646377726117,0.24964517,41500.0,41493.0,0.367025]
[1646377726612,0.18204285,41505.0,41492.0,0.18145825]
[1646377727012,0.18204285,41505.0,41492.0,0.11745825]
[1646377728013,0.18204285,41505.0,41493.0,0.3]
[1646377728214,0.26348602,41499.0,41492.0,0.11745825]
[1646377728514,0.18204285,41505.0,41493.0,0.667025]
[1646377728715,0.34287105,41505.0,41493.0,0.667025]
[1646377729161,0.34287105,41505.0,41493.0,0.3]
[1646377729362,0.46287105,41505.0,41493.0,0.3]
[1646377729561,0.27813762,41497.0,41492.0,0.11745825]
[1646377729760,0.46287105,41505.0,41493.0,0.367025]
[1646377729965,0.46287105,41505.0,41494.0,0.3]
[1646377730162,0.46287105,41505.0,41492.0,0.11745825]
[1646377730362,0.3,41504.0,41489.0,0.004]
[1646377730564,0.3,41504.0,41490.0,0.5]
[1646377730963,0.3486,41504.0,41490.0,0.5]
[1646377732162,0.3486,41504.0,41500.0,0.005]
[1646377732818,0.22908462,41503.0,41500.0,0.005]
[1646377733021,0.06528827,41501.0,41500.0,0.005]
[1646377733217,0.06316588,41501.0,41500.0,0.005]
[1646377733418,0.56231688,41501.0,41487.0,0.004]
[1646377733619,0.56231688,41501.0,41480.0,0.2343]
[1646377733620,0.199151,41499.0,41480.0,0.2343]
[1646377733820,0.15,41500.0,41480.0,0.2343]
[1646377733821,0.21414287,41487.0,41480.0,0.2343]
[1646377734218,0.21414287,41487.0,41475.0,0.005]
[1646377734419,0.21414287,41487.0,41479.0,0.17666904]
[1646377735119,0.3,41486.0,41479.0,0.17666904]
[1646377736118,0.36234981,41486.0,41479.0,0.17666904]
[1646377736362,0.3,41486.0,41477.0,0.367025]
[1646377736561,0.3,41486.0,41476.0,0.005]
[1646377737362,0.20587809,41480.0,41477.0,0.18483858]
[1646377737562,0.20587809,41480.0,41478.0,0.367025]
[1646377738765,0.20587809,41480.0,41474.0,0.367025]
[1646377739163,0.32587809,41480.0,41474.0,0.367025]
[1646377739365,0.32587809,41480.0,41473.0,0.004]
[1646377739564,0.32587809,41480.0,41473.0,0.20345639]
[1646377742831,0.17887553,41479.0,41473.0,0.20345639]
[1646377743233,0.32587809,41480.0,41473.0,0.20345639]
[1646377743631,0.31175592,41480.0,41473.0,0.20345639]
[1646377744266,0.12,41480.0,41474.0,0.367025]
[1646377744863,0.12,41480.0,41474.0,0.467025]
[1646377747913,0.12,41480.0,41475.0,0.367025]
[1646377748113,0.27418034,41480.0,41475.0,0.367025]
[1646377748313,0.12,41480.0,41475.0,0.367025]
[1646377748515,0.12,41480.0,41474.0,0.1]
[1646377748916,0.12,41480.0,41475.0,0.367025]
[1646377749517,0.12,41480.0,41474.0,0.1]
[1646377749720,0.12,41480.0,41475.0,0.367025]
[1646377749919,0.12,41480.0,41474.0,0.1]
[1646377750119,0.12,41480.0,41475.0,0.367025]
[1646377750319,0.12,41480.0,41474.0,0.104]
[1646377751587,0.12,41480.0,41474.0,0.1]
[1646377751987,0.12,41480.0,41476.0,0.367025]
[1646377752189,0.12,41480.0,41475.0,0.367025]
[1646377752590,0.199151,41479.0,41474.0,0.1]
[1646377752790,0.0486,41478.0,41474.0,0.1]
[1646377752989,0.199151,41477.0,41474.0,0.1]
[1646377753591,0.199151,41475.0,41474.0,0.1]
[1646377753989,0.247751,41475.0,41474.0,0.1]
[1646377754290,0.45151291,41475.0,41474.0,0.1]
[1646377755218,0.75151291,41475.0,41474.0,0.1]
[1646377756420,0.547751,41475.0,41474.0,0.1]
[1646377756621,0.247751,41475.0,41474.0,0.1]
[1646377756820,0.247751,41475.0,41463.0,0.4807]
[1646377757022,0.0486,41475.0,41463.0,0.3]
[1646377757830,0.0486,41475.0,41464.0,0.367025]
[1646377758221,0.25,41482.0,41464.0,0.367025]
[1646377758422,0.0486,41481.0,41464.0,0.367025]
[1646377758622,0.058258,41486.0,41472.0,0.20097318]
[1646377758885,0.1126,41484.0,41473.0,0.667025]
[1646377759178,0.009658,41486.0,41473.0,0.667025]
[1646377759379,0.05,41489.0,41474.0,0.12062123]
[1646377759577,0.26986894,41484.0,41475.0,0.367025]
[1646377759777,0.26986894,41484.0,41477.0,0.367025]
[1646377759980,0.18335931,41488.0,41476.0,0.3]
[1646377760176,0.3,41487.0,41472.0,0.20097318]
[1646377760377,0.12,41489.0,41473.0,0.004]
[1646377760578,0.12,41489.0,41474.0,0.367025]
[1646377760979,0.40318989,41489.0,41474.0,0.367025]
[1646377761178,0.40318989,41489.0,41476.0,0.367025]
[1646377761383,0.12,41489.0,41480.0,0.20346878]
[1646377762282,0.24391735,41487.0,41480.0,0.20346878]
[1646377762482,0.12,41489.0,41480.0,0.20346878]
[1646377763323,0.16232281,41488.0,41480.0,0.20346878]
[1646377763522,0.28313155,41488.0,41480.0,0.20346878]
[1646377764123,0.12,41489.0,41482.0,0.367025]
[1646377764323,0.12,41489.0,41483.0,0.367025]
[1646377764527,0.12,41489.0,41485.0,0.367025]
[1646377764725,0.12,41489.0,41486.0,0.3]
[1646377764925,0.12,41489.0,41484.0,0.367025]
[1646377765327,0.12,41489.0,41482.0,0.0486]
[1646377766568,0.17691741,41487.0,41482.0,0.0486]
[1646377767267,0.12,41489.0,41482.0,0.0486]
[1646377767868,0.12,41489.0,41478.0,0.36031032]
[1646377768467,0.12,41489.0,41479.0,0.0486]
[1646377770418,0.35481831,41489.0,41480.0,0.366387]
[1646377770819,0.51903825,41489.0,41480.0,0.366387]
[1646377771020,0.35481831,41489.0,41481.0,0.366387]
[1646377771319,0.12,41489.0,41480.0,0.366387]
[1646377772321,0.12,41489.0,41479.0,0.0486]
[1646377775392,0.12,41489.0,41479.0,0.07273]
[1646377775792,0.12,41489.0,41479.0,0.0486]
[1646377776392,0.12,41489.0,41479.0,0.01860297]
[1646377776593,0.12,41489.0,41480.0,0.366387]
[1646377776796,0.12,41489.0,41482.0,0.366387]
[1646377777393,0.12,41489.0,41481.0,0.3]
[1646377777614,0.12,41489.0,41482.0,0.366387]
[1646377778216,0.12,41489.0,41481.0,0.3]
[1646377781477,0.12,41489.0,41482.0,0.366387]
[1646377781776,0.12,41489.0,41483.0,0.06030147]
[1646377782376,0.12,41489.0,41485.0,0.01670623]
[1646377782577,0.12,41489.0,41486.0,0.366387]
[1646377784586,0.12,41489.0,41488.0,0.37965856]
[1646377784781,0.05,41499.0,41489.0,0.23999999]
[1646377784981,0.05,41503.0,41496.0,0.01291439]
[1646377785240,0.0011,41508.0,41497.0,0.414987]
[1646377785642,0.0011,41508.0,41497.0,0.0486]
[1646377785643,0.20689177,41505.0,41497.0,0.0486]
[1646377786040,0.20649682,41505.0,41497.0,0.0486]
[1646377786641,0.2462475,41501.0,41497.0,0.0486]
[1646377786839,0.20649682,41505.0,41498.0,0.366387]
[1646377787040,0.20649682,41505.0,41497.0,0.0486]
[1646377789163,0.20649682,41505.0,41498.0,0.366387]
[1646377789363,0.20649682,41505.0,41494.0,0.0486]
[1646377789766,0.25540362,41502.0,41495.0,0.366387]
[1646377789965,0.25540362,41502.0,41494.0,0.0486]
[1646377790164,0.32649682,41505.0,41495.0,0.366387]
[1646377790370,0.12,41505.0,41497.0,0.366387]
[1646377790566,0.12,41505.0,41498.0,0.0486]
[1646377790766,0.12,41505.0,41499.0,0.366387]
[1646377790966,0.12,41505.0,41501.0,0.366387]
[1646377791368,0.12,41505.0,41502.0,0.0486]
[1646377791565,0.009851,41506.0,41503.0,0.366387]
[1646377792367,0.009851,41506.0,41503.0,0.426661]
[1646377792621,0.009851,41506.0,41503.0,0.726661]
[1646377793223,0.009851,41506.0,41503.0,0.426661]
[1646377794825,0.009851,41506.0,41504.0,0.3]
[1646377795029,0.009851,41506.0,41505.0,0.366387]
[1646377795225,0.009851,41506.0,41505.0,0.714987]
[1646377795925,0.009851,41506.0,41505.0,0.414987]
[1646377797866,0.009851,41506.0,41494.0,0.581445]
[1646377797867,0.009851,41506.0,41494.0,0.5814717]
[1646377798066,0.009851,41506.0,41496.0,0.5]
[1646377798267,0.009851,41506.0,41497.0,0.06028569]
[1646377798468,0.21322915,41502.0,41498.0,0.366387]
[1646377798667,0.52744712,41506.0,41502.0,0.366387]
[1646377798867,0.22744712,41506.0,41502.0,0.366387]
[1646377799067,0.009851,41506.0,41502.0,0.366387]
[1646377799267,0.009851,41506.0,41502.0,0.42666626]
[1646377799768,0.009851,41506.0,41502.0,0.366387]
[1646377799968,0.0002,41506.0,41502.0,0.366387]
[1646377800222,0.00717374,41506.0,41502.0,0.366387]
[1646377801022,0.20338606,41505.0,41502.0,0.366387]
[1646377801922,0.00717374,41506.0,41502.0,0.366387]
[1646377802325,0.00717374,41506.0,41505.0,0.39130117]
[1646377802927,0.00717374,41506.0,41502.0,0.1]
[1646377803128,0.0011,41508.0,41502.0,0.1]
[1646377804175,0.20189148,41503.0,41502.0,0.1]
[1646377804373,0.20189148,41503.0,41502.0,0.12491417]
[1646377804374,0.44024248,41503.0,41502.0,0.12491417]
[1646377804568,0.0011,41508.0,41502.0,0.12491417]
[1646377804770,0.238351,41507.0,41502.0,0.1]
[1646377804969,0.1665763,41506.0,41502.0,0.1]
[1646377805169,0.20764879,41503.0,41502.0,0.1]
[1646377805371,0.20764879,41503.0,41502.0,0.12491417]
[1646377806772,0.20764879,41503.0,41502.0,0.09368627]
[1646377807373,0.41910959,41503.0,41502.0,0.06966383]
[1646377807615,0.20764879,41503.0,41502.0,0.06966383]
[1646377807816,0.50764879,41503.0,41502.0,0.06966383]
[1646377808021,0.20764879,41503.0,41502.0,0.06966383]
[1646377808217,0.18319458,41508.0,41502.0,0.43605083]
[1646377808417,0.009653,41504.0,41503.0,0.366387]
[1646377808616,0.009653,41504.0,41502.0,0.0687721]
[1646377808816,0.18319458,41508.0,41502.0,0.0687721]
[1646377809217,0.18319458,41508.0,41497.0,0.27283334]
[1646377809418,0.2196795,41503.0,41493.0,0.3]
[1646377809619,0.18319458,41508.0,41499.0,0.00089173]
[1646377809816,0.18319458,41508.0,41500.0,0.366387]
[1646377810219,0.18319458,41508.0,41501.0,0.06028]
[1646377810622,0.24213594,41505.0,41501.0,0.06028]
[1646377810819,0.24213594,41505.0,41502.0,0.366387]
[1646377811474,0.24213594,41505.0,41500.0,0.366387]
[1646377811675,0.21737063,41502.0,41500.0,0.366387]
[1646377811874,0.24213594,41505.0,41501.0,0.00089165]
[1646377812173,0.24213594,41505.0,41498.0,0.12056267]
[1646377812575,0.24213594,41505.0,41497.0,0.003]
[1646377812774,0.18948653,41501.0,41497.0,0.003]
[1646377812974,0.18948653,41501.0,41500.0,0.00089179]
[1646377813179,0.42783753,41501.0,41500.0,0.00089179]
[1646377813576,0.18948653,41501.0,41500.0,0.00089179]
[1646377814576,0.42783753,41501.0,41500.0,0.00089179]
[1646377815220,0.64149536,41501.0,41500.0,0.00089179]
[1646377816822,0.42283753,41501.0,41500.0,0.00089179]
[1646377817832,0.59401438,41501.0,41500.0,0.00089179]
[1646377819068,0.35566338,41501.0,41500.0,0.00089179]
[1646377820669,0.59401438,41501.0,41500.0,0.00089179]
[1646377820871,0.59401438,41501.0,41496.0,0.002]
[1646377821071,0.238351,41500.0,41496.0,0.002]
[1646377821269,0.286951,41500.0,41496.0,0.002]
[1646377821868,0.0486,41500.0,41489.0,0.23999999]
[1646377822068,0.1658338,41494.0,41489.0,0.23999999]
[1646377822269,0.0486,41500.0,41489.0,0.23999999]
[1646377822469,0.06545111,41497.0,41489.0,0.23999999]
[1646377822727,0.04596,41500.0,41489.0,0.23999999]
[1646377822728,0.238351,41496.0,41489.0,0.23999999]
[1646377822928,0.238351,41494.0,41489.0,0.23999999]
[1646377823228,0.23664738,41495.0,41489.0,0.23999999]
[1646377823528,0.18753392,41490.0,41489.0,0.23999999]
[1646377823731,0.18355392,41490.0,41489.0,0.23999999]
[1646377823927,0.238351,41493.0,41489.0,0.23999999]
[1646377824531,0.18138093,41494.0,41489.0,0.23999999]
[1646377825328,0.18138093,41494.0,41489.0,0.23968151]
[1646377825329,0.48138093,41494.0,41489.0,0.23968151]
[1646377825527,0.238351,41493.0,41489.0,0.23968151]
[1646377826027,0.45783446,41493.0,41489.0,0.23968151]
[1646377826231,0.21948346,41493.0,41489.0,0.23968151]
[1646377826666,0.45783446,41493.0,41489.0,0.23968151]
[1646377826868,0.3,41494.0,41489.0,0.23968151]
[1646377827067,0.23864738,41495.0,41489.0,0.23968151]
[1646377827267,0.28379738,41495.0,41489.0,0.23968151]
[1646377827466,0.28034738,41495.0,41489.0,0.23968151]
[1646377827868,0.27834738,41495.0,41489.0,0.23968151]
[1646377829267,0.0486,41495.0,41489.0,0.23968151]
[1646377829469,0.302,41499.0,41489.0,0.23968151]
[1646377829871,0.3,41499.0,41489.0,0.23968151]
[1646377830119,0.28030181,41494.0,41489.0,0.23968151]
[1646377830319,0.28030181,41494.0,41493.0,0.00241103]
[1646377830616,0.3,41499.0,41493.0,0.00241103]
[1646377830818,0.3,41499.0,41489.0,0.23968151]
[1646377831427,0.16379058,41500.0,41489.0,0.23968151]
[1646377831428,0.002,41500.0,41489.0,0.23968151]
[1646377831622,0.002,41500.0,41491.0,0.366387]
[1646377831823,0.1244,41504.0,41491.0,0.366387]
[1646377832020,0.1244,41504.0,41490.0,0.3]
[1646377832621,0.17645896,41503.0,41491.0,0.366387]
[1646377832821,0.25911375,41501.0,41490.0,0.306]
[1646377833221,0.25911375,41501.0,41491.0,0.366387]
[1646377833423,0.25911375,41501.0,41490.0,0.34455766]
[1646377833865,0.25911375,41501.0,41490.0,0.33855766]
[1646377834368,0.25911375,41501.0,41490.0,0.3]
[1646377835067,0.25911375,41501.0,41490.0,0.2997017]
[1646377835468,0.24723354,41501.0,41490.0,0.2997017]
[1646377835666,0.17645896,41503.0,41490.0,0.2997017]
[1646377836268,0.16894444,41502.0,41490.0,0.2997017]
[1646377836867,0.21307129,41501.0,41490.0,0.2997017]
[1646377837167,0.17645896,41503.0,41490.0,0.2997017]
[1646377837656,0.17645896,41503.0,41492.0,0.0602934]
[1646377837855,0.17645896,41503.0,41492.0,0.25679704]
[1646377838154,0.26298306,41502.0,41492.0,0.25679704]
[1646377838355,0.17645896,41503.0,41492.0,0.25679704]
[1646377838555,0.17645896,41503.0,41492.0,0.0602934]
[1646377839361,0.233993,41500.0,41492.0,0.0602934]
[1646377839556,0.16820329,41502.0,41492.0,0.0602934]
[1646377839956,0.17645896,41503.0,41492.0,0.0602934]
[1646377840656,0.20686924,41499.0,41492.0,0.0602934]
[1646377841672,0.3,41502.0,41492.0,0.0602934]
[1646377842374,0.17645896,41503.0,41492.0,0.0602934]
[1646377842974,0.47645896,41503.0,41492.0,0.0602934]
[1646377843674,0.21653258,41501.0,41492.0,0.1205834]
[1646377843873,0.47645896,41503.0,41492.0,0.1205834]
[1646377844076,0.47645896,41503.0,41492.0,0.0602934]
[1646377844876,0.24250312,41502.0,41492.0,0.0602934]
[1646377845538,0.24250312,41502.0,41491.0,0.004]
[1646377845739,0.24250312,41502.0,41489.0,0.23968151]
[1646377845740,0.238351,41501.0,41489.0,0.23968151]
[1646377845938,0.238351,41499.0,41489.0,0.23968151]
[1646377846339,0.3,41500.0,41489.0,0.23968151]
[1646377846340,0.26728962,41492.0,41489.0,0.23968151]
[1646377846538,0.20073877,41495.0,41489.0,0.23968151]
[1646377847742,0.22988576,41496.0,41489.0,0.23968151]
[1646377848968,0.39049924,41496.0,41489.0,0.23968151]
[1646377849773,0.16061348,41496.0,41489.0,0.23968151]
[1646377849970,0.3509965,41496.0,41489.0,0.23968151]
[1646377850471,0.16061348,41496.0,41489.0,0.23968151]
[1646377850873,0.26627825,41495.0,41489.0,0.23968151]
[1646377851173,0.07273,41503.0,41489.0,0.23968151]
[1646377851174,0.07574462,41507.0,41490.0,0.65088019]
[1646377851376,0.0011,41509.0,41491.0,0.414987]
[1646377851572,0.0011,41509.0,41492.0,0.366387]
[1646377851773,0.0011,41509.0,41493.0,0.3486]
[1646377851973,0.25544238,41501.0,41494.0,0.0486]
[1646377853027,0.24988466,41501.0,41494.0,0.0486]
[1646377853227,0.24729466,41501.0,41494.0,0.0486]
[1646377853432,0.17523005,41503.0,41494.0,0.0486]
[1646377854229,0.06358843,41502.0,41494.0,0.0486]
[1646377854432,0.28696451,41495.0,41494.0,0.0486]
[1646377854631,0.28696451,41495.0,41494.0,0.00241025]
[1646377855629,0.35897685,41495.0,41494.0,0.00241025]
[1646377855832,0.59732785,41495.0,41494.0,0.00241025]
[1646377856475,0.35897685,41495.0,41494.0,0.00241025]
[1646377856674,0.59732785,41495.0,41494.0,0.00241025]
[1646377856877,0.59732785,41495.0,41489.0,0.23968151]
[1646377857079,0.35897685,41495.0,41489.0,0.23968151]
[1646377857777,0.48088137,41494.0,41489.0,0.23968151]
[1646377857978,0.18320565,41491.0,41489.0,0.23968151]
[1646377858477,0.238351,41490.0,41489.0,0.23968151]
[1646377858676,0.238351,41490.0,41489.0,0.23908853]
[1646377859078,0.238351,41491.0,41489.0,0.23908853]
[1646377862226,0.238351,41491.0,41477.0,0.1176]
[1646377862227,0.27864233,41481.0,41477.0,0.1176]
[1646377862529,0.15948796,41482.0,41480.0,0.00089223]
[1646377862729,0.15948796,41482.0,41475.0,0.366387]
[1646377862926,0.1158,41490.0,41475.0,0.366387]
[1646377863127,0.1158,41490.0,41474.0,0.3]
[1646377863527,0.07312591,41489.0,41474.0,0.3]
[1646377863726,0.23096558,41479.0,41475.0,0.366387]
[1646377863967,0.17078929,41485.0,41475.0,0.366387]
[1646377864170,0.17078929,41485.0,41474.0,0.3]
[1646377864567,0.41412027,41485.0,41473.0,0.06031722]
[1646377864768,0.41412027,41485.0,41471.0,0.004]
[1646377864769,0.15,41483.0,41471.0,0.004]
[1646377864968,0.23738795,41481.0,41471.0,0.004]
[1646377865171,0.286951,41480.0,41471.0,0.004]
[1646377865370,0.3,41479.0,41471.0,0.004]
[1646377865570,0.17862772,41472.0,41471.0,0.004]
[1646377865770,0.58347719,41472.0,41471.0,0.004]
[1646377866369,0.8511794,41472.0,41471.0,0.004]
[1646377866868,0.238351,41471.0,41465.0,0.002]
[1646377867070,0.238351,41469.0,41465.0,0.002]
[1646377867272,0.238351,41470.0,41465.0,0.002]
[1646377867929,0.3,41471.0,41457.0,0.406]
[1646377868125,0.15793076,41469.0,41457.0,0.406]
[1646377868326,0.19614109,41462.0,41457.0,0.406]
[1646377868525,0.15793076,41469.0,41465.0,0.0356567]
[1646377868526,0.238351,41466.0,41465.0,0.0356567]
[1646377868724,0.538351,41466.0,41465.0,0.0356567]
[1646377869126,0.17193857,41458.0,41453.0,0.005]
[1646377869328,0.4476047,41457.0,41453.0,0.005]
[1646377869526,0.4417647,41457.0,41453.0,0.005]
[1646377869725,0.4407647,41457.0,41453.0,0.005]
[1646377869925,0.2087337,41457.0,41446.0,0.16089465]
[1646377870126,0.5087337,41457.0,41446.0,0.16089465]
[1646377870326,0.20745753,41451.0,41446.0,0.16089465]
[1646377870528,0.5087337,41457.0,41446.0,0.16089465]
[1646377870930,0.5087337,41457.0,41445.0,0.005]
[1646377870931,0.23147,41456.0,41445.0,0.005]
[1646377871230,0.5573337,41457.0,41445.0,0.005]
[1646377871502,1.39091475,41456.0,41445.0,0.005]
[1646377871683,0.7853,41455.0,41445.0,0.005]
[1646377871884,0.18885304,41447.0,41445.0,0.005]
[1646377872085,0.23147,41446.0,41445.0,0.005]
[1646377872486,0.44157433,41446.0,41445.0,0.005]
[1646377872684,1.00284453,41446.0,41429.0,0.1192]
[1646377872885,0.3,41445.0,41429.0,0.1192]
[1646377873086,0.3,41445.0,41435.0,0.20139468]
[1646377873285,0.3,41445.0,41426.0,0.21160623]
[1646377873286,0.15,41439.0,41426.0,0.21160623]
[1646377873489,0.15,41439.0,41422.0,0.29933434]
[1646377873490,0.72946533,41438.0,41418.0,0.01205]
[1646377873686,0.26138253,41428.0,41419.0,0.00060467]
[1646377873885,0.23147,41427.0,41421.0,0.00060467]
[1646377874085,0.1,41437.0,41422.0,0.366646]
[1646377874285,0.1,41437.0,41425.0,0.20669727]
[1646377874286,0.20556009,41436.0,41425.0,0.20669727]
[1646377874490,0.05,41438.0,41435.0,0.00060467]
[1646377874687,0.15960794,41441.0,41436.0,0.366646]
[1646377874886,0.2499,41448.0,41433.0,0.00060467]
[1646377874887,0.22196062,41442.0,41433.0,0.00060467]
[1646377875138,0.0486,41441.0,41433.0,0.00060467]
[1646377875340,0.0486,41441.0,41430.0,0.00060467]
[1646377875341,0.18492515,41439.0,41430.0,0.00060467]
[1646377875539,0.17261366,41435.0,41430.0,0.00060467]
[1646377876239,0.19119196,41432.0,41430.0,0.00060467]
[1646377876439,0.23147,41434.0,41430.0,0.00060467]
[1646377877040,0.17195366,41435.0,41430.0,0.00060467]
[1646377877440,0.1,41445.0,41430.0,0.00060467]
[1646377877640,0.23147,41444.0,41431.0,0.0486]
[1646377877942,0.38946778,41444.0,41431.0,0.0486]
[1646377878342,0.05004262,41428.0,41424.0,0.0486]
[1646377878540,0.05004262,41428.0,41427.0,0.02491417]
[1646377878739,0.05004262,41428.0,41427.0,0.07351417]
[1646377878983,0.21152488,41428.0,41427.0,0.07351417]
[1646377880386,0.21152488,41428.0,41421.0,0.00060467]
[1646377880387,0.21152488,41428.0,41422.0,0.0486]
[1646377880588,0.30385488,41428.0,41421.0,0.00060467]
[1646377881184,0.23147,41427.0,41420.0,0.01265467]
[1646377881386,0.21152488,41428.0,41420.0,0.01265467]
[1646377881586,0.23147,41427.0,41420.0,0.01265467]
[1646377882627,0.22435763,41422.0,41417.0,0.0486]
[1646377882829,0.01983431,41419.0,41417.0,0.0486]
[1646377883027,0.01983431,41419.0,41418.0,0.0241473]
[1646377883228,0.01983431,41419.0,41418.0,0.02414788]
[1646377883432,0.25130431,41419.0,41410.0,0.00060467]
[1646377883733,0.25130431,41419.0,41400.0,0.6045]
[1646377883734,0.17468603,41411.0,41400.0,0.6045]
[1646377883932,0.64338643,41412.0,41411.0,0.34937206]
[1646377884529,0.82938866,41412.0,41411.0,0.34937206]
[1646377884931,0.94338643,41412.0,41411.0,0.34937206]
[1646377885331,0.80299437,41412.0,41411.0,0.34937206]
[1646377885531,0.64338643,41412.0,41411.0,0.34937206]
[1646377886030,0.85659189,41412.0,41411.0,0.34937206]
[1646377886233,0.63173039,41412.0,41411.0,0.34937206]
[1646377886469,0.63173039,41412.0,41411.0,0.22959158]
[1646377887268,0.93173039,41412.0,41411.0,0.22959158]
[1646377887669,1.09133833,41412.0,41411.0,0.22959158]
[1646377887969,0.63173039,41412.0,41411.0,0.22959158]
[1646377888170,0.79133833,41412.0,41411.0,0.22959158]
[1646377888367,0.87887525,41412.0,41411.0,0.22959158]
[1646377888775,1.17887525,41412.0,41411.0,0.22959158]
[1646377889170,1.33848319,41412.0,41411.0,0.22959158]
[1646377891818,1.10701319,41412.0,41411.0,0.22959158]
[1646377892219,1.17713565,41412.0,41411.0,0.22959158]
[1646377892422,1.40860565,41412.0,41411.0,0.22959158]
[1646377892820,1.33848319,41412.0,41411.0,0.22959158]
[1646377893420,1.43848319,41412.0,41411.0,0.22959158]
[1646377894371,1.49662713,41412.0,41411.0,0.22959158]
[1646377894568,1.49662713,41412.0,41411.0,0.10979915]
[1646377894767,1.49596195,41412.0,41411.0,0.10979915]
[1646377894966,1.43781801,41412.0,41411.0,0.10979915]
[1646377895567,1.43781801,41412.0,41411.0,0.14604915]
[1646377896268,1.13781801,41412.0,41411.0,0.14604915]
[1646377896868,1.20525656,41412.0,41411.0,0.14604915]
[1646377898425,0.67278486,41412.0,41411.0,0.14604915]
[1646377898628,1.14445001,41412.0,41411.0,0.14604915]
[1646377898826,0.68484207,41412.0,41411.0,0.14604915]
[1646377899026,0.84445001,41412.0,41411.0,0.14604915]
[1646377899228,0.90029754,41412.0,41411.0,0.14604915]
[1646377899827,0.90029754,41412.0,41400.0,0.005]
[1646377899828,1.5,41411.0,41400.0,0.005]
[1646377900128,1.72697612,41410.0,41400.0,0.005]
[1646377900329,1.11756533,41408.0,41400.0,0.005]
[1646377900529,0.7367,41404.0,41400.0,0.005]
[1646377900728,0.2081355,41401.0,41400.0,0.005]
[1646377900930,0.4396055,41401.0,41400.0,0.005]
[1646377901373,0.73803639,41401.0,41400.0,0.005]
[1646377901575,0.73803639,41401.0,41391.0,9.091e-05]
[1646377901576,0.23147,41399.0,41391.0,9.091e-05]
[1646377901779,0.80656639,41401.0,41391.0,9.091e-05]
[1646377901780,0.23147,41397.0,41391.0,9.091e-05]
[1646377901976,0.96817,41397.0,41391.0,9.091e-05]
[1646377902176,0.33147,41397.0,41391.0,9.091e-05]
[1646377902576,0.21254341,41396.0,41391.0,9.091e-05]
[1646377902774,0.23147,41395.0,41391.0,9.091e-05]
[1646377903476,0.16074954,41394.0,41391.0,9.091e-05]
[1646377903676,0.1,41399.0,41392.0,0.00060467]
[1646377903878,0.5455,41408.0,41391.0,9.091e-05]
[1646377903879,0.15960794,41405.0,41395.0,0.00060467]
[1646377904076,0.05358956,41409.0,41396.0,0.0486]
[1646377904077,0.15960794,41407.0,41396.0,0.0486]
[1646377904274,0.27076271,41405.0,41396.0,0.0486]
[1646377904478,0.06904764,41401.0,41396.0,0.0486]
[1646377904675,0.40024734,41400.0,41395.0,0.00060467]
[1646377904876,0.19063046,41393.0,41391.0,0.04869091]